[Event "Titled Tuesday Blitz November 07 Early 2023"]
[White "ssgm49"]
[Black "a-z30"]
[WhiteElo "2015"]
[BlackElo "2529"]
[Result "1/2-1/2"]
[Round "1"]
[TimeControl "180+1"]
[Date "2023.11.07"]
[WhiteClock "0:00:00"]
[BlackClock "0:00:07"]
[Board "242"]

1. Nf3 {[%clk 0:02:59]}  d5 {[%clk 0:02:59]} 2. d4 {[%clk 0:02:57]}  Nf6 {[%clk 0:02:59]} 3. c4 {[%clk 0:02:57]}  e6 {[%clk 0:02:59]} 4. Nc3 {[%clk 0:02:56]}  Bb4 {[%clk 0:02:58]} 5. e3 {[%clk 0:02:46]}  O-O {[%clk 0:02:56]} 6. Bd3 {[%clk 0:02:20]}  dxc4 {[%clk 0:02:55]} 7. Bxc4 {[%clk 0:02:15]}  c5 {[%clk 0:02:55]} 8. O-O {[%clk 0:02:10]}  cxd4 {[%clk 0:02:54]} 9. exd4 {[%clk 0:02:06]}  b6 {[%clk 0:02:53]} 10. Bg5 {[%clk 0:01:59]}  Bb7 {[%clk 0:02:50]} 11. Qe2 {[%clk 0:01:55]}  Nbd7 {[%clk 0:02:46]} 12. Rac1 {[%clk 0:01:49]}  Rc8 {[%clk 0:02:31]} 13. Ne5 {[%clk 0:01:37]}  Be7 {[%clk 0:01:55]} 14. Rfd1 {[%clk 0:01:30]}  h6 {[%clk 0:01:54]} 15. Bf4 {[%clk 0:01:21]}  Nd5 {[%clk 0:01:30]} 16. Nxd5 {[%clk 0:01:17]}  Bxd5 {[%clk 0:01:31]} 17. Bxd5 {[%clk 0:01:05]}  Rxc1 {[%clk 0:01:29]} 18. Bxc1 {[%clk 0:00:56]}  Nxe5 {[%clk 0:01:15]} 19. Bxe6 {[%clk 0:00:46]}  fxe6 {[%clk 0:01:15]} 20. dxe5 {[%clk 0:00:42]}  Qc7 {[%clk 0:01:06]} 21. Qe4 {[%clk 0:00:39]}  Rc8 {[%clk 0:00:58]} 22. h3 {[%clk 0:00:34]}  Qc2 {[%clk 0:00:55]} 23. Qg4 {[%clk 0:00:32]}  Qf5 {[%clk 0:00:51]} 24. Qxf5 {[%clk 0:00:25]}  exf5 {[%clk 0:00:50]} 25. Be3 {[%clk 0:00:23]}  Rc7 {[%clk 0:00:28]} 26. f4 {[%clk 0:00:22]}  Kf7 {[%clk 0:00:27]} 27. Kf2 {[%clk 0:00:20]}  Ke6 {[%clk 0:00:28]} 28. g3 {[%clk 0:00:15]}  b5 {[%clk 0:00:22]} 29. Kf3 {[%clk 0:00:13]}  a6 {[%clk 0:00:21]} 30. g4 {[%clk 0:00:13]}  fxg4+ {[%clk 0:00:16]} 31. hxg4 {[%clk 0:00:13]}  g6 {[%clk 0:00:16]} 32. Ke4 {[%clk 0:00:09]}  Rc4+ {[%clk 0:00:16]} 33. Bd4 {[%clk 0:00:09]}  Rc2 {[%clk 0:00:09]} 34. f5+ {[%clk 0:00:08]}  Kf7 {[%clk 0:00:10]} 35. fxg6+ {[%clk 0:00:07]}  Kxg6 {[%clk 0:00:10]} 36. Rh1 {[%clk 0:00:06]}  Re2+ {[%clk 0:00:09]} 37. Kd3 {[%clk 0:00:04]}  Rg2 {[%clk 0:00:09]} 38. Be3 {[%clk 0:00:04]}  Bg5 {[%clk 0:00:08]} 39. Bxg5 {[%clk 0:00:03]}  hxg5 {[%clk 0:00:08]} 40. e6 {[%clk 0:00:03]}  Kf6 {[%clk 0:00:08]} 41. Rh6+ {[%clk 0:00:01]}  Ke7 {[%clk 0:00:07]} 42. Rg6 {[%clk 0:00:01]}  Rxb2 {[%clk 0:00:06]} 43. Ke4 {[%clk 0:00:01]}  Rxa2 {[%clk 0:00:05]} 44. Kf5 {[%clk 0:00:02]}  Rf2+ {[%clk 0:00:05]} 45. Kxg5 {[%clk 0:00:02]}  b4 {[%clk 0:00:05]} 46. Kh4 {[%clk 0:00:01]}  b3 {[%clk 0:00:04]} 47. Kg3 {[%clk 0:00:02]}  b2 {[%clk 0:00:04]} 48. Rg7+ {[%clk 0:00:01]}  Kxe6 {[%clk 0:00:03]} 49. Rb7 {[%clk 0:00:02]}  Rc2 {[%clk 0:00:04]} 50. g5 {[%clk 0:00:02]}  Kf5 {[%clk 0:00:03]} 51. Kh4 {[%clk 0:00:02]}  Kg6 {[%clk 0:00:02]} 52. Kg4 {[%clk 0:00:02]}  Rc4+ {[%clk 0:00:01]} 53. Kf3 {[%clk 0:00:02]}  Rc3+ {[%clk 0:00:01]} 54. Ke2 {[%clk 0:00:03]}  Rc2+ {[%clk 0:00:02]} 55. Kd3 {[%clk 0:00:03]}  Rg2 {[%clk 0:00:02]} 56. Rb6+ {[%clk 0:00:03]}  Kxg5 {[%clk 0:00:03]} 57. Rb5+ {[%clk 0:00:03]}  Kf4 {[%clk 0:00:03]} 58. Rb4+ {[%clk 0:00:03]}  Kf3 {[%clk 0:00:03]} 59. Kc3 {[%clk 0:00:03]}  Ke3 {[%clk 0:00:03]} 60. Rxb2 {[%clk 0:00:03]}  Rg5 {[%clk 0:00:03]} 61. Kb4 {[%clk 0:00:03]}  Rb5+ {[%clk 0:00:03]} 62. Ka3 {[%clk 0:00:02]}  Ra5+ {[%clk 0:00:02]} 63. Kb4 {[%clk 0:00:02]}  Re5 {[%clk 0:00:03]} 64. Rc2 {[%clk 0:00:01]}  Kd3 {[%clk 0:00:04]} 65. Rc6 {[%clk 0:00:01]}  Rb5+ {[%clk 0:00:04]} 66. Ka4 {[%clk 0:00:01]}  Kd4 {[%clk 0:00:05]} 67. Rxa6 {[%clk 0:00:01]}  Rd5 {[%clk 0:00:05]} 68. Ra5 {[%clk 0:00:01]}  Kc3 {[%clk 0:00:06]} 69. Rxd5 {[%clk 0:00:00]}  Kc4 {[%clk 0:00:07]} 1/2-1/2


[Site "https://www.chess.com"]

[Event "Titled Tuesday Blitz November 07 Early 2023"]
[White "Manukyan, Artyom"]
[Black "abelmat"]
[WhiteFideId "13305786"]
[WhiteElo "2528"]
[BlackElo "1979"]
[Result "1-0"]
[Round "1"]
[TimeControl "180+1"]
[Date "2023.11.07"]
[WhiteClock "0:01:09"]
[BlackClock "0:00:00"]
[Board "243"]

1. e4 {[%clk 0:02:59]}  e6 {[%clk 0:02:59]} 2. d4 {[%clk 0:02:59]}  d5 {[%clk 0:03:00]} 3. e5 {[%clk 0:02:59]}  c5 {[%clk 0:03:00]} 4. c3 {[%clk 0:03:00]}  Qb6 {[%clk 0:03:00]} 5. Nf3 {[%clk 0:02:59]}  Bd7 {[%clk 0:03:00]} 6. a4 {[%clk 0:02:56]}  Nc6 {[%clk 0:02:57]} 7. Be2 {[%clk 0:02:54]}  cxd4 {[%clk 0:02:53]} 8. cxd4 {[%clk 0:02:53]}  Nge7 {[%clk 0:02:48]} 9. Na3 {[%clk 0:02:53]}  a6 {[%clk 0:02:42]} 10. O-O {[%clk 0:02:52]}  Nf5 {[%clk 0:02:35]} 11. Nc2 {[%clk 0:02:52]}  Be7 {[%clk 0:02:27]} 12. Bf4 {[%clk 0:02:51]}  h5 {[%clk 0:02:21]} 13. Qd2 {[%clk 0:02:48]}  Na5 {[%clk 0:02:18]} 14. Ra2 {[%clk 0:02:10]}  Rc8 {[%clk 0:02:08]} 15. Ne3 {[%clk 0:02:10]}  Nxe3 {[%clk 0:01:59]} 16. Qxe3 {[%clk 0:02:08]}  Nc4 {[%clk 0:01:55]} 17. Bxc4 {[%clk 0:02:07]}  Rxc4 {[%clk 0:01:54]} 18. a5 {[%clk 0:02:06]}  Qc7 {[%clk 0:01:40]} 19. b3 {[%clk 0:02:05]}  Rc3 {[%clk 0:01:39]} 20. Qd2 {[%clk 0:02:02]}  Bb4 {[%clk 0:01:38]} 21. Qe2 {[%clk 0:01:52]}  Bb5 {[%clk 0:01:37]} 22. Qd1 {[%clk 0:01:45]}  Bxf1 {[%clk 0:01:36]} 23. Bd2 {[%clk 0:01:45]}  Bb5 {[%clk 0:01:02]} 24. Bxc3 {[%clk 0:01:43]}  Bxc3 {[%clk 0:00:53]} 25. Rc2 {[%clk 0:01:40]}  Qxa5 {[%clk 0:00:53]} 26. Qc1 {[%clk 0:01:39]}  O-O {[%clk 0:00:19]} 27. Rxc3 {[%clk 0:01:38]}  Qa2 {[%clk 0:00:17]} 28. h4 {[%clk 0:01:37]}  Qe2 {[%clk 0:00:15]} 29. Ng5 {[%clk 0:01:34]}  Qg4 {[%clk 0:00:14]} 30. Nf3 {[%clk 0:01:28]}  g6 {[%clk 0:00:13]} 31. Qd2 {[%clk 0:01:26]}  Rd8 {[%clk 0:00:10]} 32. b4 {[%clk 0:01:25]}  Bc6 {[%clk 0:00:09]} 33. g3 {[%clk 0:01:20]}  Qf5 {[%clk 0:00:09]} 34. Ng5 {[%clk 0:01:19]}  Qb1+ {[%clk 0:00:06]} 35. Rc1 {[%clk 0:01:17]}  Qf5 {[%clk 0:00:03]} 36. Rc3 {[%clk 0:01:16]}  Kg7 {[%clk 0:00:03]} 37. Rf3 {[%clk 0:01:16]}  Rc8 {[%clk 0:00:03]} 38. Rxf5 {[%clk 0:01:16]}  exf5 {[%clk 0:00:04]} 39. Kg2 {[%clk 0:01:15]}  Bb5 {[%clk 0:00:03]} 40. e6 {[%clk 0:01:15]}  fxe6 {[%clk 0:00:02]} 41. Nxe6+ {[%clk 0:01:16]}  Kf6 {[%clk 0:00:02]} 42. Nc5 {[%clk 0:01:14]}  Re8 {[%clk 0:00:03]} 43. Qg5+ {[%clk 0:01:14]}  Kg7 {[%clk 0:00:02]} 44. Qf4 {[%clk 0:01:13]}  Bc6 {[%clk 0:00:00]} 45. Kf3 {[%clk 0:01:09]} 1-0


[Site "https://www.chess.com"]

[Event "Titled Tuesday Blitz November 07 Early 2023"]
[White "Jakubowski, Krzysztof"]
[Black "Carlsen, Magnus"]
[WhiteFideId "1112848"]
[BlackFideId "1503014"]
[WhiteElo "2664"]
[BlackElo "3268"]
[Result "0-1"]
[Round "2"]
[TimeControl "180+1"]
[Date "2023.11.07"]
[WhiteClock "0:00:09"]
[BlackClock "0:01:14"]
[Board "1"]

1. e4 {[%clk 0:03:00]}  b6 {[%clk 0:02:57]} 2. d4 {[%clk 0:02:59]}  Bb7 {[%clk 0:02:56]} 3. Bd3 {[%clk 0:02:57]}  Nf6 {[%clk 0:02:50]} 4. Qe2 {[%clk 0:02:49]}  c5 {[%clk 0:02:50]} 5. d5 {[%clk 0:02:36]}  d6 {[%clk 0:02:39]} 6. c4 {[%clk 0:02:34]}  g6 {[%clk 0:02:39]} 7. Nc3 {[%clk 0:02:32]}  Bg7 {[%clk 0:02:39]} 8. f3 {[%clk 0:02:17]}  O-O {[%clk 0:02:36]} 9. g4 {[%clk 0:02:10]}  e6 {[%clk 0:02:27]} 10. Be3 {[%clk 0:02:09]}  Re8 {[%clk 0:02:24]} 11. h4 {[%clk 0:01:54]}  b5 {[%clk 0:02:23]} 12. dxe6 {[%clk 0:01:50]}  Rxe6 {[%clk 0:02:14]} 13. O-O-O {[%clk 0:01:49]}  b4 {[%clk 0:02:13]} 14. Na4 {[%clk 0:01:34]}  Qa5 {[%clk 0:02:11]} 15. Bc2 {[%clk 0:01:27]}  Bc6 {[%clk 0:02:09]} 16. b3 {[%clk 0:01:19]}  Bxa4 {[%clk 0:02:09]} 17. bxa4 {[%clk 0:01:20]}  Nc6 {[%clk 0:02:09]} 18. Bb3 {[%clk 0:01:16]}  Nd7 {[%clk 0:02:07]} 19. Nh3 {[%clk 0:01:13]}  Nd4 {[%clk 0:02:07]} 20. Qf2 {[%clk 0:01:04]}  Ne5 {[%clk 0:02:00]} 21. Nf4 {[%clk 0:00:59]}  Rf6 {[%clk 0:01:56]} 22. g5 {[%clk 0:00:42]}  Rxf4 {[%clk 0:01:56]} 23. Bxf4 {[%clk 0:00:43]}  Nexf3 {[%clk 0:01:39]} 24. h5 {[%clk 0:00:42]}  Qd8 {[%clk 0:01:31]} 25. hxg6 {[%clk 0:00:39]}  hxg6 {[%clk 0:01:30]} 26. Rh3 {[%clk 0:00:38]}  Nxg5 {[%clk 0:01:29]} 27. Rh2 {[%clk 0:00:29]}  Nxe4 {[%clk 0:01:26]} 28. Qh4 {[%clk 0:00:22]}  Qxh4 {[%clk 0:01:22]} 29. Rxh4 {[%clk 0:00:23]}  g5 {[%clk 0:01:21]} 30. Bxg5 {[%clk 0:00:18]}  Nxg5 {[%clk 0:01:22]} 31. Rg4 {[%clk 0:00:18]}  Nge6 {[%clk 0:01:21]} 32. Kd2 {[%clk 0:00:15]}  Kf8 {[%clk 0:01:18]} 33. Kd3 {[%clk 0:00:15]}  Ke7 {[%clk 0:01:16]} 34. Rf1 {[%clk 0:00:15]}  Rh8 {[%clk 0:01:15]} 35. Rg3 {[%clk 0:00:09]}  Be5 {[%clk 0:01:14]} 0-1


[Site "https://www.chess.com"]

[Event "Titled Tuesday Blitz November 07 Early 2023"]
[White "Andreikin, Dmitry"]
[Black "Shuvalova, Polina"]
[WhiteFideId "4158814"]
[BlackFideId "24171760"]
[WhiteElo "3117"]
[BlackElo "2661"]
[Result "1/2-1/2"]
[Round "2"]
[TimeControl "180+1"]
[Date "2023.11.07"]
[WhiteClock "0:00:06"]
[BlackClock "0:00:01"]
[Board "2"]

1. Nf3 {[%clk 0:03:00]}  d5 {[%clk 0:02:59]} 2. d4 {[%clk 0:02:55]}  Nf6 {[%clk 0:02:59]} 3. c4 {[%clk 0:02:55]}  e6 {[%clk 0:02:59]} 4. Bg5 {[%clk 0:02:56]}  Be7 {[%clk 0:02:58]} 5. e3 {[%clk 0:02:55]}  O-O {[%clk 0:02:58]} 6. Qc2 {[%clk 0:02:56]}  Nbd7 {[%clk 0:02:56]} 7. Nc3 {[%clk 0:02:55]}  h6 {[%clk 0:02:52]} 8. Bh4 {[%clk 0:02:52]}  c5 {[%clk 0:02:52]} 9. dxc5 {[%clk 0:02:51]}  Nxc5 {[%clk 0:02:42]} 10. cxd5 {[%clk 0:02:42]}  Nxd5 {[%clk 0:02:37]} 11. Nxd5 {[%clk 0:02:41]}  Bxh4 {[%clk 0:02:30]} 12. Qxc5 {[%clk 0:02:30]}  exd5 {[%clk 0:02:28]} 13. Nxh4 {[%clk 0:02:16]}  Qxh4 {[%clk 0:02:28]} 14. Bd3 {[%clk 0:02:16]}  Be6 {[%clk 0:02:24]} 15. Qd4 {[%clk 0:02:10]}  Qxd4 {[%clk 0:02:21]} 16. exd4 {[%clk 0:02:11]}  Rfc8 {[%clk 0:02:20]} 17. Kd2 {[%clk 0:02:11]}  Rc6 {[%clk 0:02:15]} 18. Rac1 {[%clk 0:01:55]}  Rac8 {[%clk 0:02:15]} 19. Rxc6 {[%clk 0:01:56]}  Rxc6 {[%clk 0:02:16]} 20. Re1 {[%clk 0:01:56]}  f6 {[%clk 0:02:07]} 21. h4 {[%clk 0:01:47]}  Kf8 {[%clk 0:01:58]} 22. h5 {[%clk 0:01:44]}  Bf7 {[%clk 0:01:57]} 23. g4 {[%clk 0:01:41]}  Rb6 {[%clk 0:01:46]} 24. b3 {[%clk 0:01:39]}  Rc6 {[%clk 0:01:43]} 25. Bf5 {[%clk 0:01:36]}  b6 {[%clk 0:01:28]} 26. Bd7 {[%clk 0:01:28]}  Rc7 {[%clk 0:01:28]} 27. Bb5 {[%clk 0:01:25]}  a5 {[%clk 0:01:27]} 28. f4 {[%clk 0:01:20]}  Rc8 {[%clk 0:01:20]} 29. f5 {[%clk 0:01:18]}  Be8 {[%clk 0:01:13]} 30. a4 {[%clk 0:01:13]}  Bf7 {[%clk 0:01:06]} 31. Re3 {[%clk 0:01:04]}  Rc7 {[%clk 0:01:05]} 32. Re1 {[%clk 0:01:04]}  Rc8 {[%clk 0:01:05]} 33. Re2 {[%clk 0:00:56]}  Rc7 {[%clk 0:01:05]} 34. Re3 {[%clk 0:00:56]}  Rc8 {[%clk 0:00:56]} 35. Bd7 {[%clk 0:00:44]}  Rc7 {[%clk 0:00:54]} 36. Be6 {[%clk 0:00:45]}  Re7 {[%clk 0:00:53]} 37. Ke2 {[%clk 0:00:39]}  Rc7 {[%clk 0:00:35]} 38. Kf3 {[%clk 0:00:28]}  Bxe6 {[%clk 0:00:32]} 39. fxe6 {[%clk 0:00:23]}  Ke7 {[%clk 0:00:28]} 40. Kf4 {[%clk 0:00:23]}  Rc1 {[%clk 0:00:29]} 41. Kf5 {[%clk 0:00:23]}  Rf1+ {[%clk 0:00:19]} 42. Kg6 {[%clk 0:00:21]}  Rg1 {[%clk 0:00:19]} 43. Kxg7 {[%clk 0:00:18]}  Rxg4+ {[%clk 0:00:19]} 44. Kxh6 {[%clk 0:00:18]}  Rxd4 {[%clk 0:00:15]} 45. Kh7 {[%clk 0:00:17]}  Rg4 {[%clk 0:00:15]} 46. h6 {[%clk 0:00:16]}  d4 {[%clk 0:00:15]} 47. Re1 {[%clk 0:00:16]}  d3 {[%clk 0:00:09]} 48. Kh8 {[%clk 0:00:12]}  d2 {[%clk 0:00:09]} 49. Rd1 {[%clk 0:00:11]}  Rg2 {[%clk 0:00:09]} 50. h7 {[%clk 0:00:10]}  f5 {[%clk 0:00:07]} 51. Rh1 {[%clk 0:00:06]}  Kxe6 {[%clk 0:00:03]} 52. Rh6+ {[%clk 0:00:07]}  Ke5 {[%clk 0:00:03]} 53. Rh1 {[%clk 0:00:07]}  f4 {[%clk 0:00:03]} 54. Rh5+ {[%clk 0:00:07]}  Ke4 {[%clk 0:00:03]} 55. Rh1 {[%clk 0:00:08]}  Ke3 {[%clk 0:00:03]} 56. b4 {[%clk 0:00:08]}  Ke2 {[%clk 0:00:01]} 57. bxa5 {[%clk 0:00:08]}  bxa5 {[%clk 0:00:02]} 58. Re1+ {[%clk 0:00:08]}  Kd3 {[%clk 0:00:01]} 59. Re3+ {[%clk 0:00:08]}  Kc2 {[%clk 0:00:01]} 60. Rc3+ {[%clk 0:00:09]}  Kb2 {[%clk 0:00:01]} 61. Rb3+ {[%clk 0:00:06]}  Kc2 {[%clk 0:00:01]} 62. Rc3+ {[%clk 0:00:06]}  Kd1 {[%clk 0:00:02]} 63. Rc1+ {[%clk 0:00:06]}  Ke2 {[%clk 0:00:03]} 64. Re1+ {[%clk 0:00:06]}  Kd3 {[%clk 0:00:03]} 65. Re3+ {[%clk 0:00:06]}  Kd4 {[%clk 0:00:03]} 66. Re4+ {[%clk 0:00:06]}  Kd5 {[%clk 0:00:03]} 67. Rd4+ {[%clk 0:00:06]}  Ke5 {[%clk 0:00:02]} 68. Re4+ {[%clk 0:00:06]}  Kf5 {[%clk 0:00:02]} 69. Rxf4+ {[%clk 0:00:06]}  Kxf4 {[%clk 0:00:01]} 1/2-1/2


[Site "https://www.chess.com"]

[Event "Titled Tuesday Blitz November 07 Early 2023"]
[White "Le, Tuan Minh"]
[Black "Degenbaev, Aziz"]
[WhiteFideId "12401153"]
[BlackFideId "13802640"]
[WhiteElo "3085"]
[BlackElo "2658"]
[Result "0-1"]
[Round "2"]
[TimeControl "180+1"]
[Date "2023.11.07"]
[WhiteClock "0:00:03"]
[BlackClock "0:00:13"]
[Board "4"]

1. d4 {[%clk 0:03:00]}  Nf6 {[%clk 0:02:59]} 2. c4 {[%clk 0:03:00]}  g6 {[%clk 0:02:59]} 3. Nf3 {[%clk 0:03:00]}  Bg7 {[%clk 0:03:00]} 4. g3 {[%clk 0:03:00]}  c5 {[%clk 0:03:00]} 5. Bg2 {[%clk 0:03:00]}  cxd4 {[%clk 0:03:01]} 6. Nxd4 {[%clk 0:03:00]}  h5 {[%clk 0:03:01]} 7. h3 {[%clk 0:02:58]}  O-O {[%clk 0:03:01]} 8. Nc3 {[%clk 0:02:54]}  d6 {[%clk 0:03:02]} 9. O-O {[%clk 0:02:52]}  Nc6 {[%clk 0:03:02]} 10. Nc2 {[%clk 0:02:45]}  Be6 {[%clk 0:03:01]} 11. Ne3 {[%clk 0:02:43]}  Qd7 {[%clk 0:02:56]} 12. Kh2 {[%clk 0:02:42]}  Rac8 {[%clk 0:02:51]} 13. b3 {[%clk 0:02:41]}  h4 {[%clk 0:02:46]} 14. Bb2 {[%clk 0:02:28]}  hxg3+ {[%clk 0:02:44]} 15. fxg3 {[%clk 0:02:29]}  Bh6 {[%clk 0:02:41]} 16. Ned5 {[%clk 0:02:18]}  Nh5 {[%clk 0:02:16]} 17. g4 {[%clk 0:02:03]}  Bxg4 {[%clk 0:02:16]} 18. hxg4 {[%clk 0:02:01]}  Qxg4 {[%clk 0:02:17]} 19. Qd3 {[%clk 0:01:57]}  e6 {[%clk 0:02:08]} 20. Qh3 {[%clk 0:00:47]}  Qxh3+ {[%clk 0:01:06]} 21. Bxh3 {[%clk 0:00:48]}  f5 {[%clk 0:01:06]} 22. Rg1 {[%clk 0:00:18]}  Kh7 {[%clk 0:01:05]} 23. Bg2 {[%clk 0:00:17]}  exd5 {[%clk 0:01:04]} 24. Nxd5 {[%clk 0:00:18]}  Ne5 {[%clk 0:01:02]} 25. Bf3 {[%clk 0:00:14]}  Nxf3+ {[%clk 0:00:53]} 26. exf3 {[%clk 0:00:15]}  Rce8 {[%clk 0:00:53]} 27. Rae1 {[%clk 0:00:15]}  Bd2 {[%clk 0:00:51]} 28. Rxe8 {[%clk 0:00:10]}  Rxe8 {[%clk 0:00:51]} 29. Rg2 {[%clk 0:00:10]}  Be1 {[%clk 0:00:44]} 30. Bd4 {[%clk 0:00:07]}  b6 {[%clk 0:00:42]} 31. Be3 {[%clk 0:00:07]}  Kg7 {[%clk 0:00:34]} 32. Kg1 {[%clk 0:00:06]}  Bh4 {[%clk 0:00:30]} 33. a4 {[%clk 0:00:06]}  Kf7 {[%clk 0:00:31]} 34. Bd4 {[%clk 0:00:06]}  Re1+ {[%clk 0:00:29]} 35. Kh2 {[%clk 0:00:06]}  f4 {[%clk 0:00:29]} 36. Rd2 {[%clk 0:00:05]}  g5 {[%clk 0:00:24]} 37. a5 {[%clk 0:00:04]}  bxa5 {[%clk 0:00:23]} 38. Ra2 {[%clk 0:00:05]}  Ng3 {[%clk 0:00:22]} 39. Rxa5 {[%clk 0:00:04]}  Re2+ {[%clk 0:00:21]} 40. Kh3 {[%clk 0:00:05]}  Nf5 {[%clk 0:00:20]} 41. Rxa7+ {[%clk 0:00:04]}  Kg6 {[%clk 0:00:20]} 42. Bc3 {[%clk 0:00:04]}  Rf2 {[%clk 0:00:18]} 43. Be1 {[%clk 0:00:01]}  Rxf3+ {[%clk 0:00:18]} 44. Kg4 {[%clk 0:00:02]}  Rxb3 {[%clk 0:00:14]} 45. Nxf4+ {[%clk 0:00:03]}  gxf4 {[%clk 0:00:14]} 46. Bxh4 {[%clk 0:00:04]}  Nxh4 {[%clk 0:00:14]} 47. Kxh4 {[%clk 0:00:05]}  Kf5 {[%clk 0:00:15]} 48. Rf7+ {[%clk 0:00:04]}  Ke4 {[%clk 0:00:15]} 49. Rd7 {[%clk 0:00:05]}  Ke5 {[%clk 0:00:15]} 50. Re7+ {[%clk 0:00:06]}  Kd4 {[%clk 0:00:15]} 51. Kg4 {[%clk 0:00:06]}  f3 {[%clk 0:00:15]} 52. Kg3 {[%clk 0:00:07]}  Kxc4 {[%clk 0:00:16]} 53. Re4+ {[%clk 0:00:07]}  Kc5 {[%clk 0:00:15]} 54. Kf2 {[%clk 0:00:07]}  d5 {[%clk 0:00:15]} 55. Ra4 {[%clk 0:00:08]}  d4 {[%clk 0:00:16]} 56. Ke1 {[%clk 0:00:05]}  Kd5 {[%clk 0:00:16]} 57. Kf2 {[%clk 0:00:06]}  Ke4 {[%clk 0:00:16]} 58. Ra2 {[%clk 0:00:06]}  Rc3 {[%clk 0:00:13]} 59. Rb2 {[%clk 0:00:06]}  Rc4 {[%clk 0:00:13]} 60. Ra2 {[%clk 0:00:06]}  d3 {[%clk 0:00:13]} 61. Ra8 {[%clk 0:00:04]}  Rc2+ {[%clk 0:00:14]} 62. Kg3 {[%clk 0:00:04]}  Rg2+ {[%clk 0:00:13]} 63. Kh3 {[%clk 0:00:05]}  Rg5 {[%clk 0:00:12]} 64. Re8+ {[%clk 0:00:04]}  Re5 {[%clk 0:00:13]} 65. Rd8 {[%clk 0:00:04]}  Ke3 {[%clk 0:00:12]} 66. Kg3 {[%clk 0:00:03]}  d2 {[%clk 0:00:13]} 67. Rxd2 {[%clk 0:00:03]}  Kxd2 {[%clk 0:00:13]} 68. Kxf3 {[%clk 0:00:03]}  Kd3 {[%clk 0:00:13]} 0-1


[Site "https://www.chess.com"]

[Event "Titled Tuesday Blitz November 07 Early 2023"]
[White "Skliarov, Viktor"]
[Black "Duda, Jan-Krzysztof"]
[WhiteFideId "14106736"]
[BlackFideId "1170546"]
[WhiteElo "2656"]
[BlackElo "3073"]
[Result "0-1"]
[Round "2"]
[TimeControl "180+1"]
[Date "2023.11.07"]
[WhiteClock "0:00:05"]
[BlackClock "0:00:53"]
[Board "7"]

1. e4 {[%clk 0:03:00]}  e5 {[%clk 0:02:58]} 2. Nc3 {[%clk 0:03:00]}  Nc6 {[%clk 0:02:57]} 3. Bc4 {[%clk 0:03:01]}  Nf6 {[%clk 0:02:55]} 4. d3 {[%clk 0:03:01]}  Bb4 {[%clk 0:02:53]} 5. Bg5 {[%clk 0:03:00]}  h6 {[%clk 0:02:52]} 6. Bxf6 {[%clk 0:03:00]}  Qxf6 {[%clk 0:02:53]} 7. Ne2 {[%clk 0:03:00]}  Na5 {[%clk 0:02:49]} 8. Bb3 {[%clk 0:02:47]}  c6 {[%clk 0:02:44]} 9. O-O {[%clk 0:02:44]}  g5 {[%clk 0:02:35]} 10. Ng3 {[%clk 0:02:14]}  Nxb3 {[%clk 0:02:33]} 11. axb3 {[%clk 0:02:14]}  d6 {[%clk 0:02:33]} 12. Nf5 {[%clk 0:01:56]}  h5 {[%clk 0:02:17]} 13. d4 {[%clk 0:01:43]}  Bxf5 {[%clk 0:02:11]} 14. dxe5 {[%clk 0:01:42]}  Qxe5 {[%clk 0:02:00]} 15. exf5 {[%clk 0:01:40]}  Kd7 {[%clk 0:01:57]} 16. Qd3 {[%clk 0:01:28]}  Rhe8 {[%clk 0:01:56]} 17. Ra4 {[%clk 0:01:13]}  a5 {[%clk 0:01:54]} 18. h3 {[%clk 0:01:00]}  h4 {[%clk 0:01:46]} 19. Nd1 {[%clk 0:00:45]}  b5 {[%clk 0:01:28]} 20. Ra1 {[%clk 0:00:43]}  Bc5 {[%clk 0:01:29]} 21. c3 {[%clk 0:00:36]}  d5 {[%clk 0:01:27]} 22. b4 {[%clk 0:00:22]}  Bd6 {[%clk 0:01:20]} 23. f4 {[%clk 0:00:23]}  gxf4 {[%clk 0:01:20]} 24. Rf3 {[%clk 0:00:23]}  axb4 {[%clk 0:01:11]} 25. Rxa8 {[%clk 0:00:22]}  Rxa8 {[%clk 0:01:03]} 26. cxb4 {[%clk 0:00:22]}  Bxb4 {[%clk 0:01:01]} 27. f6 {[%clk 0:00:18]}  Bc5+ {[%clk 0:00:58]} 28. Kh2 {[%clk 0:00:18]}  Qe1 {[%clk 0:00:56]} 29. Nf2 {[%clk 0:00:10]}  Bxf2 {[%clk 0:00:53]} 30. Qf5+ {[%clk 0:00:05]}  Kd8 {[%clk 0:00:53]} 0-1


[Site "https://www.chess.com"]

[Event "Titled Tuesday Blitz November 07 Early 2023"]
[White "Dowgird, Filip"]
[Black "Martinez Alcantara, Jose Eduardo"]
[WhiteFideId "1121235"]
[BlackFideId "3805662"]
[WhiteElo "2649"]
[BlackElo "3042"]
[Result "0-1"]
[Round "2"]
[TimeControl "180+1"]
[Date "2023.11.07"]
[WhiteClock "0:00:00"]
[BlackClock "0:00:22"]
[Board "11"]

1. d4 {[%clk 0:03:00]}  Nf6 {[%clk 0:02:59]} 2. Bg5 {[%clk 0:02:57]}  d5 {[%clk 0:02:58]} 3. Bxf6 {[%clk 0:02:57]}  gxf6 {[%clk 0:02:59]} 4. e3 {[%clk 0:02:56]}  e6 {[%clk 0:03:00]} 5. Nf3 {[%clk 0:02:55]}  c5 {[%clk 0:03:00]} 6. dxc5 {[%clk 0:02:53]}  Bxc5 {[%clk 0:03:01]} 7. Nbd2 {[%clk 0:02:51]}  Nc6 {[%clk 0:03:00]} 8. a3 {[%clk 0:02:50]}  Be7 {[%clk 0:02:52]} 9. Be2 {[%clk 0:02:45]}  O-O {[%clk 0:02:52]} 10. O-O {[%clk 0:02:41]}  b6 {[%clk 0:02:52]} 11. c4 {[%clk 0:02:34]}  dxc4 {[%clk 0:02:52]} 12. Qa4 {[%clk 0:02:34]}  Bb7 {[%clk 0:02:43]} 13. Qxc4 {[%clk 0:02:32]}  f5 {[%clk 0:02:40]} 14. Rfd1 {[%clk 0:02:24]}  Rc8 {[%clk 0:02:40]} 15. Qf4 {[%clk 0:02:21]}  Qc7 {[%clk 0:01:44]} 16. Qh6 {[%clk 0:02:20]}  Ne5 {[%clk 0:01:45]} 17. Ng5 {[%clk 0:02:10]}  Bxg5 {[%clk 0:01:45]} 18. Qxg5+ {[%clk 0:02:10]}  Ng6 {[%clk 0:01:46]} 19. Bf3 {[%clk 0:01:51]}  Ba6 {[%clk 0:01:44]} 20. Nb3 {[%clk 0:01:41]}  Qe5 {[%clk 0:01:12]} 21. Nd4 {[%clk 0:01:24]}  Rc7 {[%clk 0:01:13]} 22. h4 {[%clk 0:01:18]}  Qg7 {[%clk 0:00:53]} 23. Rac1 {[%clk 0:01:00]}  Rc5 {[%clk 0:00:53]} 24. b4 {[%clk 0:00:53]}  Rxc1 {[%clk 0:00:54]} 25. Rxc1 {[%clk 0:00:53]}  h6 {[%clk 0:00:54]} 26. Qg3 {[%clk 0:00:51]}  f4 {[%clk 0:00:55]} 27. Qg4 {[%clk 0:00:44]}  fxe3 {[%clk 0:00:55]} 28. fxe3 {[%clk 0:00:44]}  Qe5 {[%clk 0:00:43]} 29. Kf2 {[%clk 0:00:37]}  h5 {[%clk 0:00:26]} 30. Qxh5 {[%clk 0:00:29]}  Qxh5 {[%clk 0:00:27]} 31. Bxh5 {[%clk 0:00:30]}  Nxh4 {[%clk 0:00:27]} 32. Rc7 {[%clk 0:00:29]}  Bd3 {[%clk 0:00:28]} 33. Rxa7 {[%clk 0:00:24]}  Ng6 {[%clk 0:00:28]} 34. a4 {[%clk 0:00:16]}  Rc8 {[%clk 0:00:28]} 35. Bxg6 {[%clk 0:00:15]}  Bxg6 {[%clk 0:00:27]} 36. a5 {[%clk 0:00:15]}  bxa5 {[%clk 0:00:28]} 37. bxa5 {[%clk 0:00:16]}  Bd3 {[%clk 0:00:26]} 38. Rb7 {[%clk 0:00:11]}  e5 {[%clk 0:00:25]} 39. Nb5 {[%clk 0:00:08]}  Rc2+ {[%clk 0:00:21]} 40. Kf3 {[%clk 0:00:04]}  Ra2 {[%clk 0:00:22]} 41. Ra7 {[%clk 0:00:00]}  Bxb5 {[%clk 0:00:22]} 0-1


[Site "https://www.chess.com"]